[Event "Betsys MČR v online bleskovém šachu 2021"]
[Site "Chess.com"]
[Date "2021.04.17"]
[Round "13"]
[White "petiva3"]
[Black "JohnnyDuck64"]
[Result "0-1"]
[WhiteElo "1454"]
[BlackElo "2061"]
[TimeControl "180+1"]
[EndTime "11:11:34 PDT"]
[Termination "Uživatel JohnnyDuck64 zvítězil matem"]

1. e4 {[%clk 0:03:00.9]} 1... c5 {[%clk 0:01:54.1]} 2. Ne2 {[%clk 0:03:00.3]}
2... d6 {[%clk 0:01:53.5]} 3. g3 {[%clk 0:03:00.6]} 3... g6 {[%clk 0:01:52.7]}
4. Bg2 {[%clk 0:03:00.9]} 4... Bg7 {[%clk 0:01:52.9]} 5. O-O {[%clk 0:03:01.1]}
5... Nc6 {[%clk 0:01:53.4]} 6. c3 {[%clk 0:03:01.3]} 6... e5 {[%clk 0:01:52.5]}
7. d3 {[%clk 0:02:55.4]} 7... Nge7 {[%clk 0:01:51.7]} 8. Be3 {[%clk 0:02:55.3]}
8... O-O {[%clk 0:01:51.3]} 9. d4 {[%clk 0:02:55.3]} 9... cxd4 {[%clk
0:01:51.3]} 10. cxd4 {[%clk 0:02:55.4]} 10... exd4 {[%clk 0:01:44.5]} 11. Nxd4
{[%clk 0:02:55.3]} 11... Ne5 {[%clk 0:01:40.5]} 12. h3 {[%clk 0:02:50.4]} 12...
Nc4 {[%clk 0:01:27.7]} 13. Qe2 {[%clk 0:02:49.9]} 13... Nxe3 {[%clk 0:01:19.9]}
14. Qxe3 {[%clk 0:02:42.5]} 14... Nc6 {[%clk 0:01:19.9]} 15. Nxc6 {[%clk
0:02:41.2]} 15... bxc6 {[%clk 0:01:20.8]} 16. Nc3 {[%clk 0:02:41]} 16... Re8
{[%clk 0:01:20]} 17. Rad1 {[%clk 0:02:36.8]} 17... Qe7 {[%clk 0:01:19.7]} 18.
Rfe1 {[%clk 0:02:35.4]} 18... Rb8 {[%clk 0:01:14.8]} 19. Qd2 {[%clk 0:02:34.1]}
19... Be6 {[%clk 0:01:03.4]} 20. e5 {[%clk 0:02:14.4]} 20... Bxe5 {[%clk
0:00:53.3]} 21. Bxc6 {[%clk 0:02:13.6]} 21... Red8 {[%clk 0:00:50.4]} 22. Bg2
{[%clk 0:02:11.2]} 22... Qf6 {[%clk 0:00:50]} 23. Ne4 {[%clk 0:02:05]} 23... Qg7
{[%clk 0:00:48.9]} 24. b3 {[%clk 0:02:02.2]} 24... d5 {[%clk 0:00:46.8]} 25. Ng5
{[%clk 0:01:55.7]} 25... Bc3 {[%clk 0:00:45.7]} 26. Qe2 {[%clk 0:01:49.4]} 26...
Bxe1 {[%clk 0:00:45]} 27. Rxe1 {[%clk 0:01:49.6]} 27... Rb6 {[%clk 0:00:38]} 28.
Rd1 {[%clk 0:01:37.1]} 28... d4 {[%clk 0:00:37.5]} 29. Nxe6 {[%clk 0:01:34.2]}
29... Rxe6 {[%clk 0:00:36.8]} 30. Qb2 {[%clk 0:01:33.2]} 30... Red6 {[%clk
0:00:36.9]} 31. Kf1 {[%clk 0:01:21.1]} 31... d3 {[%clk 0:00:36.7]} 32. Qxg7+
{[%clk 0:01:20.1]} 32... Kxg7 {[%clk 0:00:37.6]} 33. Ke1 {[%clk 0:01:20]} 33...
Re8+ {[%clk 0:00:36.3]} 34. Kd2 {[%clk 0:01:20.1]} 34... Re2+ {[%clk 0:00:35.3]}
35. Kc3 {[%clk 0:01:19.5]} 35... Rxf2 {[%clk 0:00:33.8]} 36. Be4 {[%clk
0:01:16.6]} 36... d2 {[%clk 0:00:32.8]} 37. Bd3 {[%clk 0:01:08]} 37... Rf3
{[%clk 0:00:32.9]} 38. Rxd2 {[%clk 0:01:03.9]} 38... Rxg3 {[%clk 0:00:33]} 39.
Kc4 {[%clk 0:00:58.7]} 39... Rxh3 {[%clk 0:00:31.8]} 40. a4 {[%clk 0:00:54.7]}
40... a5 {[%clk 0:00:28.1]} 41. Rd1 {[%clk 0:00:43.5]} 41... h5 {[%clk
0:00:20.4]} 42. Be2 {[%clk 0:00:43.5]} 42... Rxd1 {[%clk 0:00:19.2]} 43. Bxd1
{[%clk 0:00:43.8]} 43... h4 {[%clk 0:00:18.8]} 44. b4 {[%clk 0:00:43.5]} 44...
axb4 {[%clk 0:00:18.2]} 45. Kxb4 {[%clk 0:00:43.8]} 45... Rd3 {[%clk 0:00:18]}
46. Bc2 {[%clk 0:00:42.2]} 46... Rd2 {[%clk 0:00:18]} 47. Bb3 {[%clk 0:00:41.8]}
47... h3 {[%clk 0:00:18.1]} 48. a5 {[%clk 0:00:40.7]} 48... h2 {[%clk
0:00:18.3]} 49. a6 {[%clk 0:00:39.5]} 49... h1=Q {[%clk 0:00:18.2]} 50. a7
{[%clk 0:00:39.3]} 50... Qb7+ {[%clk 0:00:17.5]} 51. Kc3 {[%clk 0:00:37.7]}
51... Rd3+ {[%clk 0:00:17]} 52. Kc4 {[%clk 0:00:37.4]} 52... Qxb3+ {[%clk
0:00:16.1]} 53. Kc5 {[%clk 0:00:36.6]} 53... Rc3+ {[%clk 0:00:15.9]} 54. Kd4
{[%clk 0:00:36.4]} 54... Qc4+ {[%clk 0:00:15.6]} 55. Ke5 {[%clk 0:00:36.3]}
55... Re3+ {[%clk 0:00:15.2]} 56. Kd6 {[%clk 0:00:36.1]} 56... Re6+ {[%clk
0:00:14.9]} 57. Kd7 {[%clk 0:00:36.1]} 57... Qc6+ {[%clk 0:00:15]} 58. Kd8
{[%clk 0:00:36.1]} 58... Re8# {[%clk 0:00:15.5]} 0-1

[Event "Betsys MČR v online bleskovém šachu 2021"]
[Site "Chess.com"]
[Date "2021.04.17"]
[Round "13"]
[White "kol340"]
[Black "honzasoucek"]
[Result "1-0"]
[WhiteElo "1896"]
[BlackElo "1644"]
[TimeControl "180+1"]
[EndTime "11:11:37 PDT"]
[Termination "Uživatel kol340 zvítězil matem"]

1. d4 {[%clk 0:03:00.9]} 1... d5 {[%clk 0:02:56.3]} 2. Nf3 {[%clk 0:03:01.8]}
2... Nf6 {[%clk 0:02:55.6]} 3. Bf4 {[%clk 0:03:02.7]} 3... c5 {[%clk 0:02:55.2]}
4. e3 {[%clk 0:03:02.2]} 4... Nc6 {[%clk 0:02:53.5]} 5. c3 {[%clk 0:03:02.4]}
5... Qb6 {[%clk 0:02:53.6]} 6. b3 {[%clk 0:02:54.9]} 6... Bf5 {[%clk 0:02:51.9]}
7. Bd3 {[%clk 0:02:54.2]} 7... Bxd3 {[%clk 0:02:50.6]} 8. Qxd3 {[%clk
0:02:55.1]} 8... e6 {[%clk 0:02:50.9]} 9. O-O {[%clk 0:02:54.5]} 9... Be7 {[%clk
0:02:49.8]} 10. Nbd2 {[%clk 0:02:53.9]} 10... O-O {[%clk 0:02:49.7]} 11. h3
{[%clk 0:02:49.2]} 11... a6 {[%clk 0:02:49.7]} 12. Rfc1 {[%clk 0:02:22.7]} 12...
Rac8 {[%clk 0:02:48.7]} 13. Rc2 {[%clk 0:02:15.6]} 13... Qa7 {[%clk 0:02:30.8]}
14. Rac1 {[%clk 0:02:14]} 14... b5 {[%clk 0:02:31]} 15. e4 {[%clk 0:01:59.2]}
15... dxe4 {[%clk 0:02:22.9]} 16. Nxe4 {[%clk 0:01:58.8]} 16... Nxe4 {[%clk
0:02:23.3]} 17. Qxe4 {[%clk 0:01:58.5]} 17... cxd4 {[%clk 0:02:21]} 18. cxd4
{[%clk 0:01:58.3]} 18... Ba3 {[%clk 0:01:48.6]} 19. Rd1 {[%clk 0:01:17.5]} 19...
Ne7 {[%clk 0:01:35.9]} 20. Be3 {[%clk 0:01:06.7]} 20... Nd5 {[%clk 0:01:32.5]}
21. Bc1 {[%clk 0:01:00.7]} 21... Be7 {[%clk 0:01:21]} 22. Bb2 {[%clk 0:00:53.8]}
22... Bf6 {[%clk 0:01:13.8]} 23. Rdc1 {[%clk 0:00:49.4]} 23... Rxc2 {[%clk
0:01:05.2]} 24. Qxc2 {[%clk 0:00:46.9]} 24... h6 {[%clk 0:00:40.5]} 25. Ba3
{[%clk 0:00:46.4]} 25... b4 {[%clk 0:00:33.7]} 26. Bb2 {[%clk 0:00:46]} 26... a5
{[%clk 0:00:32]} 27. Qc5 {[%clk 0:00:43.2]} 27... Qxc5 {[%clk 0:00:20.5]} 28.
Rxc5 {[%clk 0:00:44.1]} 28... Ra8 {[%clk 0:00:20.5]} 29. g4 {[%clk 0:00:33.9]}
29... a4 {[%clk 0:00:19.9]} 30. h4 {[%clk 0:00:26.5]} 30... axb3 {[%clk
0:00:17.1]} 31. axb3 {[%clk 0:00:27.4]} 31... Ra2 {[%clk 0:00:16.2]} 32. Bc1
{[%clk 0:00:15.6]} 32... Nc3 {[%clk 0:00:10.9]} 33. Kg2 {[%clk 0:00:14.2]} 33...
Ne2 {[%clk 0:00:09.9]} 34. Be3 {[%clk 0:00:13.7]} 34... Rb2 {[%clk 0:00:08.7]}
35. g5 {[%clk 0:00:12.3]} 35... hxg5 {[%clk 0:00:07.1]} 36. hxg5 {[%clk
0:00:13.2]} 36... Be7 {[%clk 0:00:07.3]} 37. Rc7 {[%clk 0:00:12.2]} 37... Bd6
{[%clk 0:00:07]} 38. Rc6 {[%clk 0:00:11.4]} 38... Bb8 {[%clk 0:00:06.1]} 39.
Rc8+ {[%clk 0:00:12]} 39... Kh7 {[%clk 0:00:05.2]} 40. Rxb8 {[%clk 0:00:12.9]}
40... Rxb3 {[%clk 0:00:05.2]} 41. Rb7 {[%clk 0:00:13.2]} 41... Kg6 {[%clk
0:00:03.6]} 42. Ne5+ {[%clk 0:00:12.9]} 42... Kh5 {[%clk 0:00:02]} 43. Rxf7
{[%clk 0:00:11.7]} 43... Rb1 {[%clk 0:00:01.3]} 44. Rxg7 {[%clk 0:00:10.8]}
44... b3 {[%clk 0:00:01.5]} 45. Rh7# {[%clk 0:00:09.5]} 1-0

[Event "Betsys MČR v online bleskovém šachu 2021"]
[Site "Chess.com"]
[Date "2021.04.17"]
[Round "13"]
[White "Vojta0007"]
[Black "Danyjel"]
[Result "1-0"]
[WhiteElo "1473"]
[BlackElo "1681"]
[TimeControl "180+1"]
[EndTime "11:11:37 PDT"]
[Termination "Uživatel Vojta0007 zvítězil na čas"]

1. d4 {[%clk 0:02:59.1]} 1... Nf6 {[%clk 0:02:59.5]} 2. c4 {[%clk 0:02:57.9]}
2... g6 {[%clk 0:02:59.4]} 3. Nc3 {[%clk 0:02:57.2]} 3... Bg7 {[%clk 0:02:59.4]}
4. e4 {[%clk 0:02:56.7]} 4... d6 {[%clk 0:02:58.9]} 5. Nf3 {[%clk 0:02:54.9]}
5... O-O {[%clk 0:02:58.2]} 6. Bd3 {[%clk 0:02:53.8]} 6... Bg4 {[%clk
0:02:57.4]} 7. h3 {[%clk 0:02:53.3]} 7... Bxf3 {[%clk 0:02:57.5]} 8. Qxf3 {[%clk
0:02:52.8]} 8... Nbd7 {[%clk 0:02:57.6]} 9. O-O {[%clk 0:02:52]} 9... c5 {[%clk
0:02:56.5]} 10. d5 {[%clk 0:02:50.3]} 10... Ne5 {[%clk 0:02:56.2]} 11. Qe2
{[%clk 0:02:48.3]} 11... Nxd3 {[%clk 0:02:55.4]} 12. Qxd3 {[%clk 0:02:47.7]}
12... Nd7 {[%clk 0:02:56]} 13. Rb1 {[%clk 0:02:37.6]} 13... Ne5 {[%clk
0:02:53.5]} 14. Qe2 {[%clk 0:02:33.1]} 14... Qb6 {[%clk 0:02:35.1]} 15. b3
{[%clk 0:02:15.6]} 15... Nd7 {[%clk 0:02:07.3]} 16. Bb2 {[%clk 0:02:14.2]} 16...
a5 {[%clk 0:01:58.4]} 17. Na4 {[%clk 0:02:08.8]} 17... Qd8 {[%clk 0:01:54.6]}
18. Nc3 {[%clk 0:02:05.5]} 18... Ne5 {[%clk 0:01:50.8]} 19. Rbd1 {[%clk
0:01:56]} 19... Nd7 {[%clk 0:01:35.7]} 20. Nb5 {[%clk 0:01:45.4]} 20... a4
{[%clk 0:01:30.6]} 21. Bxg7 {[%clk 0:01:42.9]} 21... Kxg7 {[%clk 0:01:29.8]} 22.
Qb2+ {[%clk 0:01:40.3]} 22... Kg8 {[%clk 0:01:29.5]} 23. f4 {[%clk 0:01:35.8]}
23... axb3 {[%clk 0:01:25.7]} 24. axb3 {[%clk 0:01:34.6]} 24... Nf6 {[%clk
0:01:19.4]} 25. e5 {[%clk 0:01:26.6]} 25... Nh5 {[%clk 0:01:12.4]} 26. Rf3
{[%clk 0:01:02.3]} 26... f5 {[%clk 0:01:12]} 27. exd6 {[%clk 0:00:59.2]} 27...
exd6 {[%clk 0:01:08.3]} 28. Re1 {[%clk 0:00:54.3]} 28... Rf6 {[%clk 0:00:36.2]}
29. Qc1 {[%clk 0:00:46.9]} 29... Qf8 {[%clk 0:00:33.6]} 30. Qe3 {[%clk 0:00:44]}
30... Ng7 {[%clk 0:00:25.5]} 31. Qe7 {[%clk 0:00:42.6]} 31... Rf7 {[%clk
0:00:19.2]} 32. Qxf8+ {[%clk 0:00:40.4]} 32... Rfxf8 {[%clk 0:00:16.8]} 33. Nxd6
{[%clk 0:00:39.9]} 33... b6 {[%clk 0:00:15.4]} 34. Nb5 {[%clk 0:00:39.2]} 34...
Ra2 {[%clk 0:00:14.1]} 35. Rf2 {[%clk 0:00:38]} 35... Rfa8 {[%clk 0:00:10.3]}
36. Ree2 {[%clk 0:00:33.3]} 36... Ra1+ {[%clk 0:00:09.7]} 37. Kh2 {[%clk
0:00:32.7]} 37... Nh5 {[%clk 0:00:09.7]} 38. g3 {[%clk 0:00:25.4]} 38... Rb1
{[%clk 0:00:09.6]} 39. Rb2 {[%clk 0:00:23.6]} 39... Re1 {[%clk 0:00:06]} 40. Kg2
{[%clk 0:00:22.9]} 40... Raa1 {[%clk 0:00:05.6]} 41. Kf3 {[%clk 0:00:20.4]}
41... Nf6 {[%clk 0:00:03.5]} 42. Nc3 {[%clk 0:00:18.9]} 42... Rac1 {[%clk
0:00:02.2]} 43. Rbc2 {[%clk 0:00:14.1]} 1-0

[Event "Betsys MČR v online bleskovém šachu 2021"]
[Site "Chess.com"]
[Date "2021.04.17"]
[Round "13"]
[White "florenc1330"]
[Black "Tynano"]
[Result "0-1"]
[WhiteElo "2103"]
[BlackElo "2008"]
[TimeControl "180+1"]
[EndTime "11:11:38 PDT"]
[Termination "Uživatel Tynano zvítězil po vzdání soupeře"]

1. c4 {[%clk 0:02:55.6]} 1... e5 {[%clk 0:02:59.7]} 2. g3 {[%clk 0:02:55.6]}
2... Nc6 {[%clk 0:03:00.3]} 3. Bg2 {[%clk 0:02:55.5]} 3... Nf6 {[%clk
0:03:00.9]} 4. Nc3 {[%clk 0:02:55.5]} 4... g6 {[%clk 0:03:01.5]} 5. Nf3 {[%clk
0:02:55.2]} 5... Bg7 {[%clk 0:03:02]} 6. O-O {[%clk 0:02:54.5]} 6... d6 {[%clk
0:03:02.5]} 7. d3 {[%clk 0:02:54.3]} 7... O-O {[%clk 0:03:02.7]} 8. Rb1 {[%clk
0:02:54.3]} 8... Nh5 {[%clk 0:03:00.4]} 9. b4 {[%clk 0:02:52.6]} 9... f5 {[%clk
0:03:00.1]} 10. b5 {[%clk 0:02:52.8]} 10... Ne7 {[%clk 0:03:00]} 11. Nd5 {[%clk
0:02:48.5]} 11... Nxd5 {[%clk 0:02:54.1]} 12. cxd5 {[%clk 0:02:48.4]} 12... f4
{[%clk 0:02:51.5]} 13. Qc2 {[%clk 0:02:31.5]} 13... Bf5 {[%clk 0:02:49.3]} 14.
Bd2 {[%clk 0:02:27.1]} 14... Qd7 {[%clk 0:02:48]} 15. Rfc1 {[%clk 0:02:24.7]}
15... Rac8 {[%clk 0:02:46]} 16. a4 {[%clk 0:02:20.3]} 16... Bh3 {[%clk
0:02:43.5]} 17. Bh1 {[%clk 0:02:20.1]} 17... h6 {[%clk 0:02:41.7]} 18. d4 {[%clk
0:02:17]} 18... e4 {[%clk 0:02:35.9]} 19. Nh4 {[%clk 0:02:06.4]} 19... fxg3
{[%clk 0:02:26.5]} 20. hxg3 {[%clk 0:02:04.3]} 20... Nxg3 {[%clk 0:02:07.1]} 21.
fxg3 {[%clk 0:01:53.6]} 21... Qg4 {[%clk 0:01:58]} 22. Be1 {[%clk 0:01:48.9]}
22... Bxd4+ {[%clk 0:01:57.3]} 23. Kh2 {[%clk 0:01:45.9]} 23... Bf2 {[%clk
0:01:41.6]} 24. Rb3 {[%clk 0:01:17.9]} 24... Bxe1 {[%clk 0:01:15.3]} 25. Rxe1
{[%clk 0:01:16]} 25... Rf2+ {[%clk 0:01:15.2]} 26. Bg2 {[%clk 0:01:09.5]} 26...
Rcf8 {[%clk 0:01:12.1]} 27. Kg1 {[%clk 0:00:52.7]} 27... Bxg2 {[%clk 0:01:02.1]}
28. Nxg2 {[%clk 0:00:51.3]} 28... Qh3 {[%clk 0:00:58.1]} 29. Qxe4 {[%clk
0:00:44.1]} 29... Qh5 {[%clk 0:00:38.1]} 30. Qe6+ {[%clk 0:00:41.8]} 30... Kh8
{[%clk 0:00:37.1]} 31. Rf3 {[%clk 0:00:39.3]} 31... R2xf3 {[%clk 0:00:30.9]} 32.
exf3 {[%clk 0:00:39.2]} 32... Qxf3 {[%clk 0:00:29.2]} 33. Qe4 {[%clk 0:00:38.9]}
33... Qxg3 {[%clk 0:00:23.6]} 34. Qd4+ {[%clk 0:00:36.8]} 34... Kg8 {[%clk
0:00:22.9]} 35. Qe3 {[%clk 0:00:34]} 35... Qg4 {[%clk 0:00:18.8]} 36. Qe6+
{[%clk 0:00:32.7]} 36... Qxe6 {[%clk 0:00:19.1]} 37. Rxe6 {[%clk 0:00:32.6]}
37... Rf5 {[%clk 0:00:19.2]} 38. Rxg6+ {[%clk 0:00:31.8]} 38... Kf7 {[%clk
0:00:18.9]} 39. Rxh6 {[%clk 0:00:31.5]} 39... Rxd5 {[%clk 0:00:19.4]} 40. Rh7+
{[%clk 0:00:31.6]} 40... Ke6 {[%clk 0:00:19.8]} 41. Rxc7 {[%clk 0:00:31.6]}
41... Rd4 {[%clk 0:00:19.9]} 42. Rxb7 {[%clk 0:00:30.7]} 42... Rxa4 {[%clk
0:00:20.3]} 43. Rxa7 {[%clk 0:00:30.6]} 43... Rxa7 {[%clk 0:00:19.9]} 44. Kf2
{[%clk 0:00:29.8]} 44... Ra1 {[%clk 0:00:20.8]} 45. Ke3 {[%clk 0:00:29.9]} 45...
Rb1 {[%clk 0:00:20.9]} 46. Nf4+ {[%clk 0:00:28.9]} 46... Ke5 {[%clk 0:00:20.8]}
47. Nd3+ {[%clk 0:00:28.6]} 47... Kd5 {[%clk 0:00:19.8]} 48. Nf4+ {[%clk
0:00:28.2]} 48... Kc4 {[%clk 0:00:20]} 49. Ke4 {[%clk 0:00:24.1]} 49... Rb3
{[%clk 0:00:20.9]} 50. Ne6 {[%clk 0:00:20.3]} 50... d5+ {[%clk 0:00:20.8]} 51.
Ke5 {[%clk 0:00:19.1]} 51... Rxb5 {[%clk 0:00:21.3]} 52. Nc7 {[%clk 0:00:18.1]}
52... Rb7 {[%clk 0:00:21.2]} 53. Nxd5 {[%clk 0:00:17.4]} 53... Rb5 {[%clk
0:00:21.7]} 54. Ke4 {[%clk 0:00:17.1]} 54... Rxd5 {[%clk 0:00:22.6]} 0-1

[Event "Betsys MČR v online bleskovém šachu 2021"]
[Site "Chess.com"]
[Date "2021.04.17"]
[Round "13"]
[White "JindrichT_CZE"]
[Black "clarissamcclellan"]
[Result "1-0"]
[WhiteElo "2050"]
[BlackElo "1830"]
[TimeControl "180+1"]
[EndTime "11:11:38 PDT"]
[Termination "Uživatel JindrichT_CZE zvítězil po vzdání soupeře"]

1. e4 {[%clk 0:03:00.9]} 1... c5 {[%clk 0:02:57.7]} 2. c4 {[%clk 0:03:00.4]}
2... e6 {[%clk 0:02:46.5]} 3. Nc3 {[%clk 0:02:59.7]} 3... Nc6 {[%clk 0:02:38]}
4. g3 {[%clk 0:02:59.2]} 4... Nf6 {[%clk 0:02:37.3]} 5. Bg2 {[%clk 0:02:59.3]}
5... d6 {[%clk 0:02:30.7]} 6. Nge2 {[%clk 0:02:57.3]} 6... Be7 {[%clk
0:02:30.7]} 7. d4 {[%clk 0:02:57.1]} 7... cxd4 {[%clk 0:02:30.3]} 8. Nxd4 {[%clk
0:02:56.6]} 8... O-O {[%clk 0:02:30.1]} 9. Nxc6 {[%clk 0:02:50.3]} 9... bxc6
{[%clk 0:02:29.7]} 10. e5 {[%clk 0:02:47.7]} 10... dxe5 {[%clk 0:02:27.5]} 11.
Qxd8 {[%clk 0:02:45.8]} 11... Rxd8 {[%clk 0:02:26.2]} 12. Bxc6 {[%clk
0:02:45.4]} 12... Rb8 {[%clk 0:02:25.3]} 13. b3 {[%clk 0:02:41]} 13... Bb4
{[%clk 0:02:23.5]} 14. Bd2 {[%clk 0:02:40.5]} 14... Bb7 {[%clk 0:02:17.3]} 15.
Bxb7 {[%clk 0:02:33.1]} 15... Rxb7 {[%clk 0:02:18.2]} 16. O-O-O {[%clk
0:02:26.3]} 16... Rbd7 {[%clk 0:02:09.6]} 17. Kc2 {[%clk 0:02:23.2]} 17... Ng4
{[%clk 0:01:59.5]} 18. Rhf1 {[%clk 0:01:46.1]} 18... Nxh2 {[%clk 0:01:56.3]} 19.
Rh1 {[%clk 0:01:45]} 19... Nf3 {[%clk 0:01:54.5]} 20. Be3 {[%clk 0:01:36.4]}
20... Nd4+ {[%clk 0:01:47.2]} 21. Bxd4 {[%clk 0:01:34.7]} 21... exd4 {[%clk
0:01:46.7]} 22. Ne4 {[%clk 0:01:28.7]} 22... d3+ {[%clk 0:01:39.9]} 23. Kb2
{[%clk 0:01:27.5]} 23... h6 {[%clk 0:01:32.8]} 24. a3 {[%clk 0:01:26.9]} 24...
Be7 {[%clk 0:01:31]} 25. b4 {[%clk 0:01:26.5]} 25... Rd4 {[%clk 0:01:25.5]} 26.
Nd2 {[%clk 0:01:23.2]} 26... Bg5 {[%clk 0:01:22.1]} 27. Kc3 {[%clk 0:01:19.7]}
27... Bf6 {[%clk 0:01:19.7]} 28. Kb3 {[%clk 0:01:19.4]} 28... e5 {[%clk
0:01:09.5]} 29. c5 {[%clk 0:01:18.1]} 29... e4 {[%clk 0:01:07.9]} 30. Nc4 {[%clk
0:01:09.7]} 30... Be7 {[%clk 0:00:59.4]} 31. Rhe1 {[%clk 0:01:08.8]} 31... f5
{[%clk 0:00:56.8]} 32. Ne5 {[%clk 0:01:06.7]} 32... Rc8 {[%clk 0:00:53.7]} 33.
Kc3 {[%clk 0:00:47.6]} 33... Rd5 {[%clk 0:00:52.3]} 34. Nc4 {[%clk 0:00:43.6]}
34... Rcd8 {[%clk 0:00:45.2]} 35. Ne3 {[%clk 0:00:41]} 35... d2 {[%clk
0:00:39.5]} 36. Re2 {[%clk 0:00:37.1]} 36... Rd3+ {[%clk 0:00:39.1]} 37. Kc2
{[%clk 0:00:35.1]} 37... Rxa3 {[%clk 0:00:35.2]} 38. Rexd2 {[%clk 0:00:35.1]}
38... Ra2+ {[%clk 0:00:33.5]} 39. Kc1 {[%clk 0:00:34.5]} 39... Ra1+ {[%clk
0:00:26.2]} 40. Kc2 {[%clk 0:00:34.4]} 40... Ra2+ {[%clk 0:00:26.2]} 41. Kc1
{[%clk 0:00:34.3]} 41... Rdxd2 {[%clk 0:00:22.6]} 42. Rxd2 {[%clk 0:00:33.5]}
42... Rxd2 {[%clk 0:00:21]} 43. Kxd2 {[%clk 0:00:33.5]} 43... g6 {[%clk
0:00:20]} 44. Nd5 {[%clk 0:00:33.1]} 44... Kf7 {[%clk 0:00:19.4]} 45. Nc7 {[%clk
0:00:32.2]} 45... Bd8 {[%clk 0:00:17.7]} 46. Nb5 {[%clk 0:00:32]} 46... a6
{[%clk 0:00:16.5]} 47. Nd6+ {[%clk 0:00:31.9]} 47... Ke6 {[%clk 0:00:15.8]} 48.
Nb7 {[%clk 0:00:30.9]} 48... Kd5 {[%clk 0:00:14.8]} 49. Nxd8 {[%clk 0:00:29]}
49... Kc4 {[%clk 0:00:14.4]} 50. c6 {[%clk 0:00:28.9]} 50... Kxb4 {[%clk
0:00:12.9]} 51. c7 {[%clk 0:00:29.1]} 51... Kc5 {[%clk 0:00:12.2]} 52. c8=Q+
{[%clk 0:00:28.7]} 1-0

[Event "Betsys MČR v online bleskovém šachu 2021"]
[Site "Chess.com"]
[Date "2021.04.17"]
[Round "13"]
[White "matykov"]
[Black "Nimrod64"]
[Result "1-0"]
[WhiteElo "2017"]
[BlackElo "2225"]
[TimeControl "180+1"]
[EndTime "11:11:41 PDT"]
[Termination "Uživatel matykov zvítězil na čas"]

1. e4 {[%clk 0:03:00.9]} 1... d5 {[%clk 0:02:59.9]} 2. exd5 {[%clk 0:02:53.2]}
2... Qxd5 {[%clk 0:03:00.8]} 3. Nc3 {[%clk 0:02:53.7]} 3... Qd6 {[%clk
0:03:00.6]} 4. Nf3 {[%clk 0:02:52.9]} 4... Nf6 {[%clk 0:03:00.1]} 5. d4 {[%clk
0:02:51.7]} 5... c6 {[%clk 0:02:59.9]} 6. Be2 {[%clk 0:02:51.8]} 6... Bf5 {[%clk
0:02:58.8]} 7. O-O {[%clk 0:02:51.2]} 7... e6 {[%clk 0:02:58.3]} 8. Bg5 {[%clk
0:02:49.1]} 8... Nbd7 {[%clk 0:02:56.9]} 9. Bh4 {[%clk 0:02:48.4]} 9... Qc7
{[%clk 0:02:56.2]} 10. Bg3 {[%clk 0:02:48.2]} 10... Bd6 {[%clk 0:02:56]} 11. Bd3
{[%clk 0:02:36.7]} 11... Bg6 {[%clk 0:02:43.9]} 12. Bxg6 {[%clk 0:02:36.2]}
12... hxg6 {[%clk 0:02:42.7]} 13. Qe2 {[%clk 0:02:31.3]} 13... Bxg3 {[%clk
0:02:40.4]} 14. hxg3 {[%clk 0:02:27.5]} 14... O-O-O {[%clk 0:02:37.4]} 15. Ne5
{[%clk 0:02:27.1]} 15... Rdf8 {[%clk 0:02:35]} 16. Nxd7 {[%clk 0:02:17.5]} 16...
Qxd7 {[%clk 0:02:28.7]} 17. Rad1 {[%clk 0:02:13.4]} 17... Rh7 {[%clk 0:02:28]}
18. Ne4 {[%clk 0:02:09.5]} 18... Rfh8 {[%clk 0:02:22.3]} 19. f3 {[%clk
0:02:01.6]} 19... Nh5 {[%clk 0:02:08.7]} 20. Kf2 {[%clk 0:01:46.5]} 20... Qc7
{[%clk 0:02:03.6]} 21. f4 {[%clk 0:01:36.8]} 21... Nf6 {[%clk 0:01:56.6]} 22.
Nxf6 {[%clk 0:01:35.6]} 22... gxf6 {[%clk 0:01:55.1]} 23. c3 {[%clk 0:01:31.3]}
23... Qd6 {[%clk 0:01:50.9]} 24. Rfe1 {[%clk 0:01:07.9]} 24... a6 {[%clk
0:01:46.8]} 25. Qe4 {[%clk 0:01:03.2]} 25... Rh5 {[%clk 0:01:34.1]} 26. c4
{[%clk 0:01:01.4]} 26... Rf5 {[%clk 0:01:26.2]} 27. Rh1 {[%clk 0:00:58.6]} 27...
Rxh1 {[%clk 0:01:13.2]} 28. Rxh1 {[%clk 0:00:59.5]} 28... g5 {[%clk 0:01:12]}
29. Rh8+ {[%clk 0:00:54.4]} 29... Kd7 {[%clk 0:01:10]} 30. Kf3 {[%clk 0:00:51]}
30... gxf4 {[%clk 0:01:03.3]} 31. gxf4 {[%clk 0:00:49.1]} 31... Qb4 {[%clk
0:00:53.1]} 32. b3 {[%clk 0:00:39.2]} 32... Qd2 {[%clk 0:00:43.5]} 33. Rb8
{[%clk 0:00:37.4]} 33... Kc7 {[%clk 0:00:34.7]} 34. Rf8 {[%clk 0:00:36.3]} 34...
Qd1+ {[%clk 0:00:32.5]} 35. Kf2 {[%clk 0:00:30]} 35... Qh5 {[%clk 0:00:29.2]}
36. Qf3 {[%clk 0:00:25.4]} 36... Qh4+ {[%clk 0:00:22.9]} 37. g3 {[%clk
0:00:23.3]} 37... Qh7 {[%clk 0:00:20.8]} 38. g4 {[%clk 0:00:21.5]} 38... Ra5
{[%clk 0:00:19.4]} 39. a4 {[%clk 0:00:18.7]} 39... Qh2+ {[%clk 0:00:12.9]} 40.
Kf1 {[%clk 0:00:15.2]} 40... Qh7 {[%clk 0:00:10.5]} 41. Qc3 {[%clk 0:00:13.5]}
41... b6 {[%clk 0:00:06.1]} 42. c5 {[%clk 0:00:11.6]} 42... Qh1+ {[%clk
0:00:04.9]} 43. Ke2 {[%clk 0:00:09.6]} 43... Qg2+ {[%clk 0:00:03.9]} 44. Ke1
{[%clk 0:00:08.2]} 44... Qg1+ {[%clk 0:00:03.7]} 45. Kd2 {[%clk 0:00:07.7]} 1-0